{"text_format":"1","workbook":"xlsx","n_sheets":6,"sheets":["CLASSIFICAÇÃO GERAL 2025","ago2025","set2025","out2025","nov2025","dez2025"],"not_rendered":{"charts":0,"images":2,"macros":1,"external_links":0,"defined_names":1,"comments":0,"pivot_tables":0},"unopened":[],"bounds":{"document_bytes":16777216,"sheet_cells":100000,"rows_first":2000,"rows_last":500,"rows_between":2000,"halvings":0,"cell_chars":16384,"cell_head_chars":4096},"cells_cut":0,"cells_raw":0,"read":"whole","date_system":"1900"}

{"sheet":"CLASSIFICAÇÃO GERAL 2025","index":0,"n_rows":142,"n_cols":5,"rows_kept":142,"cut":false,"hidden":false,"merged":[[0,0,0,4],[1,0,1,4]]}
["CLASSIFICAÇÃO GERAL ACPA – TEMPORADA 2025 QUARTA"]
["TRINCA-FERRO FIBRA","Pássaro","Proprietário","Origem","Pontos"]
["POSIÇÃO","NOME DO PÁSSARO","NOME DO PROPRIETÁRIO","ORIGEM (CIDADE)","PONTUAÇÃO"]
["1º","MARRETA","GILSON/GUSTAVO","S. DUMONT/TRÊS RIOS",{"$f":"28+30+30+23+28+24+24+22+23+28+17+17+26+19+21+13+22+23+30","v":448}]
["2º","VELOSTER","HENRIQUE JARDIM","ANTA",{"$f":"21+23+24+18+23+15+23+23+26+23+20+20+13+26+23+14+23+20+19","v":397}]
["3º","POPAYE","GILSON/GUSTAVO","S. DUMONT/TRÊS RIOS",{"$f":"22+26+21+21+28+15+20+20+22+19+18+24","v":256}]
["4º","TOBEBIM","NILTON GUGU","BEMPOSTA",{"$f":"28+30+26+30+21+21","v":156}]
["5º","ZAP ZAP","HERLO","PARAÍBA DO SUL",{"$f":"14+15+21+22+23+18+24","v":137}]
["6º","TOP","FAMÍLIA MINGAL","PARAÍBA DO SUL",{"$f":"23+24+30+19+24","v":120}]
["7º","SUPER","RODRIGO","PETRÓPOLIS",{"$f":"18+21+24+16+19+20","v":118}]
["8º","TEIMOSO","KAUAN","PATY DO ALFERES",{"$f":"30+28+30","v":88}]
["9º","ZEUS","RATINHO","VALENÇA",{"$f":"30+30+26","v":86}]
["10º","IMPÉRIO","SOLDADO","NOVA IGUAÇU",{"$f":"30+23+30","v":83}]
["11º","TROVÃO","LUCIMAR/LUIZ HENRIQUE","TRÊS RIOS",{"$f":"28+28+26","v":82}]
["12º","GAVIÃO","JOSÉ PAULO","PARAÍBA DO SUL",{"$f":"19+24+20+18","v":81}]
["13º","PIPOCA","MARCELO CORDEIRO","PARAÍBA DO SUL",{"$f":"28+24+26","v":78}]
["14º","CATEDRAL","GUSTAVO/GILSON","S. DO DESERTO/TRÊS RIOS",{"$f":"28+26+20","v":74}]
["15º","JHON WICK","IVERSON","TRÊS RIOS",{"$f":"22+18+20+14","v":74}]
["16º","ABSOLUTO","SOLDADO","NOVA IGUAÇU",{"$f":"30+22+21","v":73}]
["17º","ANDROID","OTÁVIO","LEVY GASPARIAN",{"$f":"30+24+17","v":71}]
["18º","TIROTEIO","DOUGLAS/CABRITO","JUIZ DE FORA/M. BARBOSA",{"$f":"24+26+21","v":71}]
["19º","SHOW DO MILHÃO","KAUAN","PATY DO ALFERES",{"$f":"22+22+23","v":67}]
["20º","MANDRAKE","CLÁUDIO","MIGUEL PEREIRA",{"$f":"23+18+24","v":65}]
["21º","VENENO","GILSON/GUSTAVO","S. DUMONT/TRÊS RIOS",{"$f":"20+17+14+13","v":64}]
["22º","DIFERENTE","SANDRINHO","TRÊS RIOS",{"$f":"19+16+13+15","v":63}]
["23º","SUSSURRO","CH/DOMINGOS","PARAÍBA DO SUL",{"$f":"19+21+20","v":60}]
["24º","GUERREIRO","CH FAMÍLIA MINGAL","PARAÍBA DO SUL",{"$f":"19+23+15","v":57}]
["25º","SUZUKI","CT ALPHA","PARAÍBA DO SUL",{"$f":"26+28","v":54}]
["26º","GUARDIÃO","CICINHO/ÍCARO","PARAÍBA DO SUL",{"$f":"26+26","v":52}]
["27º","MULEKE","LEONARDO","PETRÓPOLIS",{"$f":"28+24","v":52}]
["28º","SHAKAL","JUNINHO","TRÊS RIOS",{"$f":"16+21+15","v":52}]
["29º","PROFETA","RAFAEL ANDRADE","PETRÓPOLIS",{"$f":"19+30","v":49}]
["30º","MARECHAL","CIZINHO","PATY DO ALFERES",{"$f":"26+22","v":48}]
["31º","NOVATO","LUCIMAR/LUIZ HENRIQUE","TRÊS RIOS",{"$f":"22+26","v":48}]
["32º","PASTOR","RAFAEL ANDRADE","PETRÓPOLIS",{"$f":"20+28","v":48}]
["33º","SOBERANO","PAULINO","SAPUCAIA",{"$f":"28+20","v":48}]
["34º","GENGHIS KHAN","PABLO","ITAIPAVA",{"$f":"24+19","v":43}]
["35º","ABUSADO","MÁRCIO","PETRÓPOLIS",{"$f":"18+24","v":42}]
["36º","VENENO","JOANES","PARAÍBA DO SUL",{"$f":"21+21","v":42}]
["37º","PERON","LEVI","TRÊS RIOS",{"$f":"24+17","v":41}]
["38º","NENÉM","JOANES","PARAÍBA DO SUL",{"$f":"22+18","v":40}]
["39º","CONFUSÃO","CICINHO","PARAÍBA DO SUL",{"$f":"16+23","v":39}]
["40º","MAD MAX JR","LEANDRO MOURA","TRÊS RIOS",{"$f":"21+18","v":39}]
["41º","MÁSKARA","VINÍCIUS","AREAL",{"$f":"16+22","v":38}]
["42º","SINISTRO","ALEXANDRE","JUIZ DE FORA",{"$f":"20+18","v":38}]
["43º","BRUTO","RUAN BARRINHA","PARAÍBA DO SUL",{"$f":"20+16","v":36}]
["44º","PIT BULL","JOÃO MARCOS","AREAL",{"$f":"18+17","v":35}]
["45º","JUMBO","ALEXANDRE","JUIZ DE FORA",{"$f":"17+17","v":34}]
["46º","WOLVERINE","MURILO","TRÊS RIOS",{"$f":"20+14","v":34}]
["47º","WOLVERINE","TELES MILER","TRÊS RIOS",{"$f":"15+17","v":32}]
["48º","TRUCO","IGOR LIMA","TRÊS RIOS",{"$f":"18+13","v":31}]
["49º","ASTRO","ALEXANDRE/ANA CARLA","SOUZA AGUIAR",30]
["50º","ATROPELO","GABRIEL PAVÃO/EDILSON PAVÃO","PETRÓPOLIS",30]
["51º","COLAPSO","GABRIEL","MAR DE ESPANHA",30]
["52º","FIEL","MATHEUS/JÚLIO","PARAÍBA DO SUL",{"$f":"13+17","v":30}]
["53º","MATRAQUINHA","RAFAEL","PARAÍBA DO SUL",30]
["54º","SEM LIMITE","JUNINHO","TRÊS RIOS",30]
["55º","ULTRAGAS","GABRIEL","MAR DE ESPANHA",30]
["56º","CANGACEIRO","GABRIEL","PETRÓPOLIS",{"$f":"14+15","v":29}]
["57º","397","SÍLVIO LEAL","PETRÓPOLIS",28]
["58º","BARÃO","RAFAEL DIAS","PARAÍBA DO SUL",28]
["59º","CAVALO BRANCO","JÚLIO","PETRÓPOLIS",28]
["60º","LEKE","GUSTAVO","PARAÍBA DO SUL",28]
["61º","MAITOGAI","EDILSON PAVÃO","PETRÓPOLIS",28]
["62º","PRECIOSO","FAMÍLIA HONORATO","PARAÍBA DO SUL",28]
["63º","REI DA MÁFIA","JÚLIO","MIGUEL PEREIRA",28]
["64º","ALBATROZ","GABRIEL","MAR DE ESPANHA",26]
["65º","AVASSALADOR","WELLINTON","TRÊS RIOS",26]
["66º","CORINGA","SÍLVIO LEAL","PETRÓPOLIS",26]
["67º","KRATOS","RICARDO/GUSTAVINHO/KAUE","ANTA",26]
["68º","PODEROSO CASTIGO","FELIPE","PATY DO ALFERES",26]
["69º","THOR","JÚLIO","MIGUEL PEREIRA",26]
["70º","CASCAVEL","ZIZI","MATIAS BARBOSA",24]
["71º","PORCO","RODRIGO/BRUNO","PETRÓPOLIS",24]
["72º","RACHA CUCA","FAMÍLIA MINGAL","PARAÍBA DO SUL",24]
["73º","ROCHA","LUCIMAR/LUIZ HENRIQUE","TRÊS RIOS",24]
["74º","BRUTO DE RAÇA","XEIA","PATY DO ALFERES",23]
["75º","IMPACTO","CYR NORBERTO","JUIZ DE FORA",23]
["76º","METEORO","HARLEI","TRÊS RIOS",23]
["77º","PROBLEMA","EMERSON","ANTA",23]
["78º","ASTRO","KAUAN","PATY DO ALFERES",22]
["79º","ATREVIDO","JOSENILTON","PARAÍBA DO SUL",22]
["80º","DINO","AMILTON","JUIZ DE FORA",22]
["81º","ESTRELA","RAFAEL DIAS","PARAÍBA DO SUL",22]
["82º","GAGUINHO","MÁRCIO","TRÊS RIOS",22]
["83º","KI SHOW","RODRIGO/RAFAEL","PETRÓPOLIS",22]
["84º","TUIM","JOSÉ RICARDO","PARAÍBA DO SUL",22]
["85º","VENENO","CT LIMA/MATHEUS","PARAÍBA DO SUL",22]
["86º","ALTA TENSÃO","PABLO","ITAIPAVA",21]
["87º","BOI BANDIDO","HENRIQUE","ANTA",21]
["88º","DOURADO","ÉVERTON","JUIZ DE FORA",21]
["89º","IMPERADOR","WALLACE","PETRÓPOLIS",21]
["90º","TADALAFILA","FELIPE CRECK","MIGUEL PEREIRA",21]
["91º","YRON","NICOLAS","PETRÓPOLIS",21]
["92º","157","TT","TRÊS RIOS",20]
["93º","CHORÃO","ALESSANDRO","TRÊS RIOS",20]
["94º","DUBAY","ALEX MOTTA","PETRÓPOLIS",20]
["95º","RADAR","CLODOALDO","TRÊS RIOS",20]
["96º","URUTU REI","RICO","MIGUEL PEREIRA",20]
["97º","BOI","FAMÍLIA MINGAL","PARAÍBA DO SUL",19]
["98º","CHACAL","JUNINHO","TRÊS RIOS",19]
["99º","DIEGO","EULER","TRÊS RIOS",19]
["100º","FORASTEIRO","KLEBER","AREAL",19]
["101º","SEXTA-FEIRA","GILBERT","JUIZ DE FORA",19]
["102º","SNIPER","GABRIEL/RICARDINHO","PARAÍBA DO SUL",19]
["103º","TALENTO","LOIRINHO","PARAÍBA DO SUL",19]
["104º","ZÉ CALANGO","RAFAEL TAVARES","PETRÓPOLIS",19]
["105º","BOPE","GILSON/GUSTAVO","S. DUMONT/TRÊS RIOS",18]
["106º","FINAL FELIZ","WELINGTON","PETRÓPOLIS",18]
["107º","ITACHI","IVERSON","TRÊS RIOS",18]
["108º","OURO BRANCO","FELIPE","TRÊS RIOS",18]
["109º","SUB ZERO","ANDRÉ","PARAÍBA DO SUL",18]
["110º","BIPOLAR","LUIZ CARLOS","MIGUEL PEREIRA",17]
["111º","CYCLOPE","RENATO","JUIZ DE FORA",17]
["112º","INVICTA","CH FAMÍLIA MINGAL","PARAÍBA DO SUL",17]
["113º","RAIO","LUCIMAR /LUIZ HENRIQUE","TRÊS RIOS",17]
["114º","SHITAI","GABRIEL/EDILSON","PETRÓPOLIS",17]
["115º","TERROR DA BAIXADA","CICINHO/BALINHA","PARAÍBA DO SUL",17]
["116º","VENENO","JÚLIO","MIGUEL PEREIRA",17]
["117º","ESTRELA","JOSÉ","TRÊS RIOS",16]
["118º","ET","MUTUM","JUIZ DE FORA",16]
["119º","MALUQUINHO","LUIZ FERNANDO","TRÊS RIOS",16]
["120º","MATADOR","ANDRÉ","PARAÍBA DO SUL",16]
["121º","PIVETE","SOLDADO","NOVA IGUAÇU",16]
["122º","SUPER","HARLEI","TRÊS RIOS",16]
["123º","TREM BALA","CICINHO","PARAÍBA DO SUL",16]
["124º","ZANGADO","WELINGTON","PETRÓPOLIS",16]
["125º","ZÉ PORRADA","DENTINHO","PARAÍBA DO SUL",16]
["126º","DOPAMINA","RAPHAEL","MATIAS BARBOSA",15]
["127º","FÚRIA","KAUAN","PATY DO ALFERES",15]
["128º","MANDELA","DAVI","LEVY GASPARIAN",15]
["129º","RED BULL","LORRAN","PETRÓPOLIS",15]
["130º","SNIPER","GILSON/GUSTAVO","S. DUMONT/TRÊS RIOS",15]
["131º","CABULOSO","WATILA","JUIZ DE FORA",14]
["132º","MALIBU","PABLO","ITAIPAVA",14]
["133º","RAMBO","JHONATAS","PARAÍBA DO SUL",14]
["134º","SEM NOME","RAFAEL DIAS","PARAÍBA DO SUL",14]
["135º","TERRORISTA","KLEBER/WALLACE","PETRÓPOLIS",14]
["136º","TNT","ANTÔNIO MENEGUIT","CACHOEIRA DE MACACU",14]
["137º","JOIA RARA","RODRIGO/BRUNO","PETRÓPOLIS",13]
["138º","MATA RINDO","VINÍCIUS BOZO","TRÊS RIOS",13]
["139º","VISGO","KAUAN","PATY DO ALFERES",13]

{"sheet":"ago2025","index":1,"n_rows":22,"n_cols":27,"rows_kept":22,"cut":false,"hidden":false,"merged":[[0,0,0,5],[0,7,0,12],[0,14,0,19],[0,21,0,26]]}
["06/08/2025 (QUARTA-FEIRA)",null,null,null,null,null,null,"13/08/2025 (QUARTA-FEIRA)",null,null,null,null,null,null,"20/08/2025 (QUARTA-FEIRA)",null,null,null,null,null,null,"27/08/2025 (QUARTA-FEIRA)"]
["POS.","PÁSSARO","PROPRIETÁRIO","ORIGEM","CANTOS","PONTOS",null,"POS.","PÁSSARO","PROPRIETÁRIO","ORIGEM","CANTOS","PONTOS",null,"POS.","PÁSSARO","PROPRIETÁRIO","ORIGEM","CANTOS","PONTOS",null,"POS.","PÁSSARO","PROPRIETÁRIO","ORIGEM","CANTOS","PONTOS"]
["1º","IMPÉRIO","SOLDADO","NOVA IGUAÇU",156,30,null,"1º","MARRETA","SOLDADO","NOVA IGUAÇU",154,30,null,"1º","MARRETA","GILSON/GUSTAVO","S. DUMONT/TRÊS RIOS",173,30,null,"1º","TOBEBIM","NILTON","TRÊS RIOS",137,30]
["2º","MARRETA","SOLDADO","NOVA IGUAÇU",151,28,null,"2º","SOBERANO","PAULINO","SAPUCAIA",142,28,null,"2º","TOBEBIM","NILTON","BEMPOSTA",142,28,null,"2º","MULEKE","LEONARDO","PETRÓPOLIS",135,28]
["3º","GUARDIÃO","GABRIEL/ÍCARO","PARAÍBA DO SUL",116,26,null,"3º","PODEROSO CASTIGO","FELIPE","PATY DO ALFERES",119,26,null,"3º","SUZUKI","JOÃO PEDRO","PARAÍBA DO SUL",131,26,null,"3º","POPAYE","GILSON/GUSTAVO","S. DUMONT/TRÊS RIOS",125,26]
["4º","RACHA CUCA","FAMÍLIA MINGAL","PARAÍBA DO SUL",110,24,null,"4º","ROCHA","LUCIMAR/LUIZ HENRIQUE","TRÊS RIOS",104,24,null,"4º","VELOSTER","HENRIQUE JARDIM","ANTA",111,24,null,"4º","SUPER","RODRIGO","PETRÓPOLIS",122,24]
["5º","PROBLEMA","EMERSON","ANTA",110,23,null,"5º","VELOSTER","HENRIQUE","ANTA",96,23,null,"5º","TOP","FAMÍLIA MINGAL","PARAÍBA DO SUL",100,23,null,"5º","MARRETA","GILSON/GUSTAVO","S. DUMONT/TRÊS RIOS",119,23]
["6º","ESTRELA","RAFAEL DIAS","PARAÍBA DO SUL",109,22,null,"6º","JHON WICK","IVERSON","TRÊS RIOS",82,22,null,"6º","POPAYE","GILSON/GUSTAVO","S. DUMONT/TRÊS RIOS",98,22,null,"6º","ATREVIDO","JOSENILTON","PARAÍBA DO SUL",113,22]
["7º","VELOSTER","HENRIQUE","ANTA",104,21,null,"7º","BOI BANDIDO","HENRIQUE","ANTA",75,21,null,"7º","SUPER","RODRIGO","PETRÓPOLIS",94,21,null,"7º","SUSSURRO","DOMINGOS","PARAÍBA DO SUL",113,21]
["8º","URUTU REI","RICO","MIGUEL PEREIRA",88,20,null,"8º","VENENO","GILSON/GUSTAVO","S. DUMONT/TRÊS RIOS",70,20,null,"8º","SOBERANO","PAULINO","SAPUCAIA",94,20,null,"8º","WOLVERINE","MURILO","TRÊS RIOS",93,20]
["9º","SUSSURRO","CH/DOMINGOS","PARAÍBA DO SUL",67,19,null,"9º","CARAVELA","JONATAS","TRÊS RIOS",58,null,null,"9º","TALENTO","LOIRINHO","PARAÍBA DO SUL",94,19,null,"9º","DIEGO","EULER","TRÊS RIOS",91,19]
["10º","SUPER","RODRIGO","PETRÓPOLIS",62,18,null,"10º","PRIMEIRA VEZ","BINHA","PATY DO ALFERES",50,null,null,"10º","JHON WICK","IVERSON","TRÊS RIOS",91,18,null,"10º","VELOSTER","HENRIQUE","ANTA",81,18]
["11º","VENENO","JÚLIO","MIGUEL PEREIRA",60,17,null,"11º",null,null,null,null,null,null,"11º","FIEL","ALAN","PETRÓPOLIS",58,null,null,"11º","VENENO","GILSON/GUSTAVO","S. DUMONT/TRÊS RIOS",79,17]
["12º",null,null,null,null,null,null,"12º",null,null,null,null,null,null,"12º","ITACHI","IVERSON","TRÊS RIOS",46,null,null,"12º","ESTRELA","JOSÉ","TRÊS RIOS",78,16]
["13º",null,null,null,null,null,null,"13º",null,null,null,null,null,null,"13º",null,null,null,null,null,null,"13º","SNIPER","GILSON/GUSTAVO","S. DUMONT/TRÊS RIOS",71,15]
["14º",null,null,null,null,null,null,"14º",null,null,null,null,null,null,"14º",null,null,null,null,null,null,"14º","RAMBO","JHONATAS","PARAÍBA DO SUL",66,14]
["15º",null,null,null,null,null,null,"15º",null,null,null,null,null,null,"15º",null,null,null,null,null,null,"15º","VISGO","KAUAN","PATY DO ALFERES",65,13]
["16º",null,null,null,null,null,null,"16º",null,null,null,null,null,null,"16º",null,null,null,null,null,null,"16º","REPETIDOR","GILSON/GUSTAVO","S. DUMONT/TRÊS RIOS",59]
["17º",null,null,null,null,null,null,"17º",null,null,null,null,null,null,"17º",null,null,null,null,null,null,"17º","TALENTO","LOIRINHO","PARAÍBA DO SUL",58]
["18º",null,null,null,null,null,null,"18º",null,null,null,null,null,null,"18º",null,null,null,null,null,null,"18º"]
["19º",null,null,null,null,null,null,"19º",null,null,null,null,null,null,"19º",null,null,null,null,null,null,"19º"]
["20º",null,null,null,null,null,null,"20º",null,null,null,null,null,null,"20º",null,null,null,null,null,null,"20º"]

{"sheet":"set2025","index":2,"n_rows":27,"n_cols":27,"rows_kept":27,"cut":false,"hidden":false,"merged":[[0,0,0,5],[0,7,0,12],[0,14,0,19],[0,21,0,26]]}
["03/09/2025 (QUARTA-FEIRA)",null,null,null,null,null,null,"10/09/2025 (QUARTA-FEIRA)",null,null,null,null,null,null,"17/09/2025 (QUARTA-FEIRA)",null,null,null,null,null,null,"24/09/2025 (QUARTA-FEIRA)"]
["POS.","PÁSSARO","PROPRIETÁRIO","ORIGEM","CANTOS","PONTOS",null,"POS.","PÁSSARO","PROPRIETÁRIO","ORIGEM","CANTOS","PONTOS",null,"POS.","PÁSSARO","PROPRIETÁRIO","ORIGEM","CANTOS","PONTOS",null,"POS.","PÁSSARO","PROPRIETÁRIO","ORIGEM","CANTOS","PONTOS"]
["1º","ULTRAGAS","GABRIEL","MAR DE ESPANHA",168,30,null,"1º","ZEUS","RATINHO","VALENÇA",136,30,null,"1º","ASTRO","ALEXANDRE/ANA CARLA","SOUZA AGUIAR",150,30,null,"1º","ZEUS","RATINHO","VALENÇA",155,30]
["2º","MARRETA","GUSTAVO/GILSON","TRÊS RIOS/S. DUMONT",143,28,null,"2º","CATEDRAL","GUSTAVO/GILSON","TRÊS RIOS/S. DUMONT",128,28,null,"2º","PRECIOSO","FAMÍLIA HONORATO","PARAÍBA DO SUL",129,28,null,"2º","MAITOGAI","EDILSON PAVÃO","PETRÓPOLIS",151,28]
["3º","KRATOS","RICARDO/GUSTAVINHO/KAUE","ANTA",129,26,null,"3º","TOBEBIM","NILTON GUGU","BEMPOSTA",122,26,null,"3º","CATEDRAL","SOLDADO","NOVA IGUAÇU",122,26,null,"3º","NOVATO","LUCIMAR/LUIZ HENRIQUE","TRÊS RIOS",132,26]
["4º","MULEKE","LEONARDO","PETRÓPOLIS",116,24,null,"4º","MARRETA","GUSTAVO/GILSON","TRÊS RIOS/S. DUMONT",114,24,null,"4º","MARRETA","GUSTAVO/GILSON","TRÊS RIOS",119,24,null,"4º","PORCO","RODRIGO/BRUNO","PETRÓPOLIS",125,24]
["5º","VELOSTER","HENRIQUE","ANTA",113,23,null,"5º","GUERREIRO","CH FAMÍLIA MINGAL","PARAÍBA DO SUL",112,23,null,"5º","VELOSTER","HENRIQUE","ANTA",115,23,null,"5º","VELOSTER","HENRIQUE","ANTA",121,23]
["6º","ASTRO","KAUAN","PATY DO ALFERES",102,22,null,"6º","NOVATO","LUCIMAR/LUIZ HENRIQUE","TRÊS RIOS",109,22,null,"6º","DINO","AMILTON","JUIZ DE FORA",113,22,null,"6º","MARRETA","GUSTAVO/GILSON","S. DO DESERTO/TRÊS RIOS",119,22]
["7º","MAD MAX JR","LEANDRO MOURA","TRÊS RIOS",94,21,null,"7º","TADALAFILA","FELIPE CRECK","MIGUEL PEREIRA",106,21,null,"7º","POPAYE","GUSTAVO/GILSON","TRÊS RIOS",108,21,null,"7º","POPEY","GILSON/GUSTAVO","S. DO DESERTO/TRÊS RIOS",117,21]
["8º","JOHN WICK","IVERSON","TRÊS RIOS",94,20,null,"8º","SUSSURRO","DOMINGOS/LOIRIN","PARAÍBA DO SUL",103,20,null,"8º","SUPER","RODRIGO","PETRÓPOLIS",105,20,null,"8º","CATEDRAL","GUSTAVO/GILSON","S. DO DESERTO/TRÊS RIOS",117,20]
["9º","GUERREIRO","CH FAMÍLIA MINGAL","PARAÍBA DO SUL",90,19,null,"9º","SUPER","RODRIGO","PETRÓPOLIS",101,19,null,"9º","DIFERENTE","SANDRINHO","TRÊS RIOS",97,19,null,"9º","SEXTA-FEIRA","GILBERT","JUIZ DE FORA",107,19]
["10º","BOPE","GILSON/GUSTAVO","S. DUMONT/TRÊS RIOS",83,18,null,"10º","MAD MAX JR","LEANDRO MOURA","TRÊS RIOS",93,18,null,"10º","ITACHI","IVERSON","TRÊS RIOS",90,18,null,"10º","OURO BRANCO","FELIPE","TRÊS RIOS",97,18]
["11º","CYCLOPE","RENATO","JUIZ DE FORA",83,17,null,"11º","SHITAI","GABRIEL/EDILSON","PETRÓPOLIS",91,17,null,"11º","RAIO","LUCIMAR /LUIZ HENRIQUE","TRÊS RIOS",88,17,null,"11º","JUMBO","ALEXANDRE","JUIZ DE FORA",87,17]
["12º","SUPER","RODRIGO","PETRÓPOLIS",77,16,null,"12º","MATADOR","ANDRÉ","PARAÍBA DO SUL",91,16,null,"12º","ET","MUTUM","JUIZ DE FORA",86,16,null,"12º","DIFERENTE","SANDRINHO","TRÊS RIOS",76,16]
["13º","FURIA","KAUAN","PATY DO ALFERES",73,15,null,"13º","VELOSTER","HENRIQUE","ANTA",90,15,null,"13º","ZAP ZAP","HERLO","PARAÍBA DO SUL",67,15,null,"13º","GUERREIRO","CH GUERREIRO","TRÊS RIOS",75,15]
["14º","VENENO","GILSON/GUSTAVO","S. DUMONT/TRÊS RIOS",71,14,null,"14º","ZAP ZAP","HERLO","PARAÍBA DO SUL",85,14,null,"14º","JHON WICK","IVERSON","TRÊS RIOS",63,14,null,"14º","WOLVERINE","MURILO","TRÊS RIOS",68,14]
["15º","JOIA RARA","RODRIGO/BRUNO","PETRÓPOLIS",71,13,null,"15º","VENENO","GUSTAVO/GILSON","TRÊS RIOS/S. DUMONT",83,13,null,"15º",null,null,null,null,null,null,"15º","SINISTRO","ALEXANDRE","JUIZ DE FORA",34]
["16º","MAJESTOSO","LOIRIN","PARAÍBA DO SUL",67,null,null,"16º","MANDRAKE","CLAUDIO DUARTE","MIGUEL PEREIRA",82,null,null,"16º",null,null,null,null,null,null,"16º"]
["17º","MINOTAURO","VINÍCIUS SATYRO","PETRÓPOLIS",67,null,null,"17º","DIFERENTE","SANDRINHO","TRÊS RIOS",70,null,null,"17º",null,null,null,null,null,null,"17º"]
["18º","TOP","FAMÍLIA MINGAL","PARAÍBA DO SUL",66,null,null,"18º","GALO BRANCO","GUSTAVO/GILSON","TRÊS RIOS/S. DUMONT",69,null,null,"18º",null,null,null,null,null,null,"18º"]
["19º",null,null,null,null,null,null,"19º","WOLVERINE","MURILO","TRÊS RIOS",67,null,null,"19º",null,null,null,null,null,null,"19º"]
["20º",null,null,null,null,null,null,"20º","ABENÇOADO","SANDRO","ANTA",66,null,null,"20º",null,null,null,null,null,null,"20º"]
["21º",null,null,null,null,null,null,"21º","TALENTO","LOIRIN","PARAÍBA DO SUL",59,null,null,"21º",null,null,null,null,null,null,"21º"]
["22º",null,null,null,null,null,null,"22º","XARÁ","NILTON GUGU","BEMPOSTA",40,null,null,"22º",null,null,null,null,null,null,"22º"]
["23º",null,null,null,null,null,null,"23º",null,null,null,null,null,null,"23º",null,null,null,null,null,null,"23º"]
["24º",null,null,null,null,null,null,"24º",null,null,null,null,null,null,"24º",null,null,null,null,null,null,"24º"]
["25º",null,null,null,null,null,null,"25º",null,null,null,null,null,null,"25º",null,null,null,null,null,null,"25º"]

{"sheet":"out2025","index":3,"n_rows":22,"n_cols":34,"rows_kept":22,"cut":false,"hidden":false,"merged":[[0,0,0,5],[0,7,0,12],[0,14,0,19],[0,21,0,26],[0,28,0,33]]}
["01/10/2025 (QUARTA-FEIRA)",null,null,null,null,null,null,"08/10/2025 (QUARTA-FEIRA)",null,null,null,null,null,null,"15/10/2025 (QUARTA-FEIRA)",null,null,null,null,null,null,"22/10/2025 (QUARTA-FEIRA)",null,null,null,null,null,null,"29/10/2025 (QUARTA-FEIRA)"]
["POS.","PÁSSARO","PROPRIETÁRIO","ORIGEM","CANTOS","PONTOS",null,"POS.","PÁSSARO","PROPRIETÁRIO","ORIGEM","CANTOS","PONTOS",null,"POS.","PÁSSARO","PROPRIETÁRIO","ORIGEM","CANTOS","PONTOS",null,"POS.","PÁSSARO","PROPRIETÁRIO","ORIGEM","CANTOS","PONTOS",null,"POS.","PÁSSARO","PROPRIETÁRIO","ORIGEM","CANTOS","PONTOS"]
["1º","TOBEBIM","NILTON GUGU","BEMPOSTA",150,30,null,"1º","TOP","FAMÍLIA MINGAL","PARAÍBA DO SUL",135,30,null,"1º","ABSOLUTO","SOLDADO","NOVA IGUAÇU",150,30,null,"1º","MATRAQUINHA","RAFAEL","PARAÍBA DO SUL",156,30,null,"1º","TEIMOSO","KAUAN","PATY DO ALFERES",149,30]
["2º","POPAYE","GILSON/GUSTAVO","TRÊS RIOS/S. DUMONT",142,28,null,"2º","MARRETA","GUSTAVO/GILSON","TRÊS RIOS/S. DUMONT",134,28,null,"2º","LEKE","GUSTAVO","PARAÍBA DO SUL",129,28,null,"2º","SUZUKI","CT ALPHA","PARAÍBA DO SUL",152,28,null,"2º","397","SÍLVIO LEAL","PETRÓPOLIS",130,28]
["3º","VELOSTER","HENRIQUE","ANTA",125,26,null,"3º","ZEUS","RATINHO","VALENÇA",131,26,null,"3º","TIROTEIO","DOUGLAS/CABRITO","JUIZ DE FORA/M. BARBOSA",127,26,null,"3º","ALBATROZ","GABRIEL","MAR DE ESPANHA",121,26,null,"3º","MARRETA","GILSON/GUSTAVO","TRÊS RIOS/S. DUMONT",129,26]
["4º","TOP","FAMÍLIA MINGAL","PARAÍBA DO SUL",116,24,null,"4º","TIROTEIO","DOUGLAS/CABRITO","JUIZ DE FORA",130,24,null,"4º","GAVIÃO","JOSÉ PAULO","PARAÍBA DO SUL",120,24,null,"4º","GENGHIS KHAN","PABLO","ITAIPAVA",121,24,null,"4º","PERON","LEVI","TRÊS RIOS",114,24]
["5º","MARRETA","GUSTAVO/GILSON","TRÊS RIOS/S. DUMONT",116,23,null,"5º","VELOSTER","HENRIQUE","ANTA",119,23,null,"5º","SHOW DO MILHÃO","KAUAN","PATY DO ALFERES",115,23,null,"5º","ZAP ZAP","HERLO","PARAÍBA DO SUL",117,23,null,"5º","METEORO","HARLEI","TRÊS RIOS",114,23]
["6º","SHOW DO MILHÃO","KAUAN","PATY DO ALFERES",114,22,null,"6º","SHOW DO MILHÃO","KAUAN","PATY DO ALFERES",118,22,null,"6º","ZAP ZAP","HERLO","PARAÍBA DO SUL",111,22,null,"6º","ABSOLUTO","SOLDADO","NOVA IGUAÇU",111,22,null,"6º","KI SHOW","RODRIGO/RAFAEL","PETRÓPOLIS",111,22]
["7º","ZAP ZAP","HERLO","PARAÍBA DO SUL",113,21,null,"7º","TOBEBIM","NILTON GUGU","BEMPOSTA",118,21,null,"7º","YRON","NICOLAS","PETRÓPOLIS",110,21,null,"7º","TIROTEIO","DOUGLAS/CABRITO","JUIZ DE FORA/M. BARBOSA",110,21,null,"7º","ABSOLUTO","SOLDADO","NOVA IGUAÇU",105,21]
["8º","SINISTRO","ALEXANDRE","JUIZ DE FORA",109,20,null,"8º","BRUTO","RUAN BARRINHA","PARAÍBA DO SUL",107,20,null,"8º","VELOSTER","HENRIQUE","ANTA",105,20,null,"8º","VELOSTER","HENRIQUE","ANTA",110,20,null,"8º","POPAYE","GILSON/GUSTAVO","TRÊS RIOS/S. DUMONT",103,20]
["9º","GAVIÃO","JOSÉ PAULO","PARAÍBA DO SUL",105,19,null,"9º","ZÉ CALANGO","RAFAEL TAVARES","PETRÓPOLIS",100,19,null,"9º","BOI","FAMÍLIA MINGAL","PARAÍBA DO SUL",104,19,null,"9º","FORASTEIRO","KLEBER","AREAL",110,19,null,"9º","GENGHIS KHAN","PABLO","ITAIPAVA",98,19]
["10º","FINAL FELIZ","WELINGTON","PETRÓPOLIS",102,18,null,"10º","SINISTRO","ALEXANDRE","JUIZ DE FORA",82,18,null,"10º","SUB ZERO","ANDRÉ","PARAÍBA DO SUL",100,18,null,"10º","TRUCO","IGOR LIMA","TRÊS RIOS",108,18,null,"10º","ZAP ZAP","HERLO","PARAÍBA DO SUL",98,18]
["11º","BIPOLAR","LUIZ CARLOS","MIGUEL PEREIRA",100,17,null,"11º","JUMBO","ALEXANDRE","JUIZ DE FORA",80,17,null,"11º","MARRETA","GUSTAVO/GILSON","TRÊS RIOS/S. DUMONT",99,17,null,"11º","MARRETA","GILSON/GUSTAVO","TRÊS RIOS/S. DUMONT",104,17,null,"11º","FIEL","JÚLIO/MATHEUS","PARAÍBA DO SUL",90,17]
["12º","ZANGADO","WELINGTON","PETRÓPOLIS",100,16,null,"12º","ZÉ PORRADA","DENTINHO","PARAÍBA DO SUL",48,16,null,"12º","PIVETE","SOLDADO","NOVA IGUAÇU",98,16,null,"12º","CONFUSÃO","CICINHO","PARAÍBA DO SUL",97,16,null,"12º","BRUTO","RUAN","PARAÍBA DO SUL",76,16]
["13º","DOPAMINA","RAPHAEL","MATIAS BARBOSA",86,15,null,"13º",null,null,null,null,null,null,"13º","POPAYE","GILSON/GUSTAVO","TRÊS RIOS/S. DUMONT",84,15,null,"13º","CANGACEIRO","GABRIEL","PETRÓPOLIS",88,15,null,"13º","DIFERENTE","SANDRINHO","TRÊS RIOS",70,15]
["14º",null,null,null,null,null,null,"14º",null,null,null,null,null,null,"14º","CANGACEIRO","GABRIEL","PETRÓPOLIS",81,14,null,"14º","CABULOSO","WATILA","JUIZ DE FORA",85,14,null,"14º","MALIBU","PABLO","ITAIPAVA",69,14]
["15º",null,null,null,null,null,null,"15º",null,null,null,null,null,null,"15º","DIFERENTE","SANDRINHO","TRÊS RIOS",67,13,null,"15º","FIEL","MATHEUS/JÚLIO","PARAÍBA DO SUL",81,13,null,"15º","VELOSTER","HENRIQUE","ANTA",67,13]
["16º",null,null,null,null,null,null,"16º",null,null,null,null,null,null,"16º","SUPER BOY","EDU","TRÊS RIOS",50,null,null,"16º","EXTINTOR","JOÃO MARCOS","AREAL",79,null,null,"16º"]
["17º",null,null,null,null,null,null,"17º",null,null,null,null,null,null,"17º",null,null,null,null,null,null,"17º","ZEUS","HENRIQUE","ANTA",77,null,null,"17º"]
["18º",null,null,null,null,null,null,"18º",null,null,null,null,null,null,"18º",null,null,null,null,null,null,"18º",null,null,null,null,null,null,"18º"]
["19º",null,null,null,null,null,null,"19º",null,null,null,null,null,null,"19º",null,null,null,null,null,null,"19º",null,null,null,null,null,null,"19º"]
["20º",null,null,null,null,null,null,"20º",null,null,null,null,null,null,"20º",null,null,null,null,null,null,"20º",null,null,null,null,null,null,"20º"]

{"sheet":"nov2025","index":4,"n_rows":27,"n_cols":27,"rows_kept":27,"cut":false,"hidden":false,"merged":[[0,0,0,5],[0,7,0,12],[0,14,0,19],[0,21,0,26]]}
["05/11/2025 (QUARTA-FEIRA)",null,null,null,null,null,null,"12/11/2025 (QUARTA-FEIRA)",null,null,null,null,null,null,"20/11/2025 (QUINTA-FEIRA)",null,null,null,null,null,null,"26/11/2025 (QUARTA-FEIRA)"]
["POS.","PÁSSARO","PROPRIETÁRIO","ORIGEM","CANTOS","PONTOS",null,"POS.","PÁSSARO","PROPRIETÁRIO","ORIGEM","CANTOS","PONTOS",null,"POS.","PÁSSARO","PROPRIETÁRIO","ORIGEM","CANTOS","PONTOS",null,"POS.","PÁSSARO","PROPRIETÁRIO","ORIGEM","CANTOS","PONTOS"]
["1º","ANDROID","OTÁVIO","VOLTA GRANDE",125,30,null,"1º","IMPÉRIO","SOLDADO","NOVA IGUAÇU",148,30,null,"1º","COLAPSO","GABRIEL","MAR DE ESPANHA",159,30,null,"1º","TEIMOSO","KAUAN","PATY DO ALFERES",141,30]
["2º","PIPOCA","MARCELO CORDEIRO","PARAÍBA DO SUL",118,28,null,"2º","TEIMOSO","KAUAN","PATY DO ALFERES",129,28,null,"2º","CAVALO BRANCO","JÚLIO","PETRÓPOLIS",151,28,null,"2º","REI DA MÁFIA","JÚLIO","MIGUEL PEREIRA",137,28]
["3º","VELOSTER","HENRIQUE","ANTA",117,26,null,"3º","THOR","JÚLIO","MIGUEL PEREIRA",122,26,null,"3º","PIPOCA","MARCELO","PARAÍBA DO SUL",150,26,null,"3º","MARECHAL","CIZINHO","PATY DO ALFERES",128,26]
["4º","ZAP ZAP","HERLO","PARAÍBA DO SUL",115,24,null,"4º","PIPOCA","MARCELO","PARAÍBA DO SUL",119,24,null,"4º","CASCAVEL","ZIZI","MATIAS BARBOSA",140,24,null,"4º","ABUSADO","MÁRCIO","PETRÓPOLIS",114,24]
["5º","IMPÉRIO","SOLDADO","NOVA IGUAÇU",105,23,null,"5º","VELOSTER","HENRIQUE","ANTA",118,23,null,"5º","IMPACTO","CYR NORBERTO","JUIZ DE FORA",137,23,null,"5º","VELOSTER","HENRIQUE","ANTA",113,23]
["6º","NENÉM","JOANES","PARAÍBA DO SUL",101,22,null,"6º","POPAYE","GILSON/GUSTAVO","TRÊS RIOS/S. DUMONT",116,22,null,"6º","GAGUINHO","MÁRCIO","TRÊS RIOS",130,22,null,"6º","TUIM","JOSÉ RICARDO","PARAÍBA DO SUL",103,22]
["7º","DOURADO","ÉVERTON","JUIZ DE FORA",100,21,null,"7º","MARRETA","GUSTAVO/GILSON","TRÊS RIOS/S. DUMONT",109,21,null,"7º","TOBEBIM","NILTON GUGU","BEMPOSTA",123,21,null,"7º","SHAKAL","JUNINHO","TRÊS RIOS",103,21]
["8º","POPAYE","GILSON/GUSTAVO","TRÊS RIOS/S. DUMONT",97,20,null,"8º","GAVIÃO","JOSÉ PAULO","PARAÍBA DO SUL",108,20,null,"8º","CHORÃO","ALESSANDRO","TRÊS RIOS",122,20,null,"8º","157","TT","TRÊS RIOS",102,20]
["9º","MARRETA","GILSON/GUSTAVO","TRÊS RIOS/S. DUMONT",96,19,null,"9º","CHACAL","JUNINHO","TRÊS RIOS",102,19,null,"9º","PROFETA","RAFAEL ANDRADE","PETRÓPOLIS",119,19,null,"9º","POPAYE","GILSON/GUSTAVO","TRÊS RIOS/S. DUMONT",97,19]
["10º","PIT BULL","JOÃO MARCOS","AREAL",96,18,null,"10º","NENÉM","JOANES","PARAÍBA DO SUL",100,18,null,"10º","ABUSADO","MÁRCIO","PETRÓPOLIS",119,18,null,"10º","GAVIÃO","JOSÉ PAULO","PARAÍBA DO SUL",95,18]
["11º","INVICTA","CH FAMÍLIA MINGAL","PARAÍBA DO SUL",95,17,null,"11º","PIT BULL","JOÃO MARCOS","AREAL",96,17,null,"11º","PERON","LEVI","TRÊS RIOS",115,17,null,"11º","WOLVERINE","TETESMILER","TRÊS RIOS",68,17]
["12º","SUPER","HARLEI","TRÊS RIOS",69,16,null,"12º","TREM BALA","CICINHO","PARAÍBA DO SUL",95,16,null,"12º","SHAKAL","JUNINHO","TRÊS RIOS",114,16,null,"12º"]
["13º","MANDELA","DAVI","LEVY GASPARIAN",68,15,null,"13º","WOLVERINE","TELES MILER","TRÊS RIOS",82,15,null,"13º","RED BULL","LORRAN","PETRÓPOLIS",113,15,null,"13º"]
["14º","SEM NOME","RAFAEL DIAS","PARAÍBA DO SUL",64,14,null,"14º","TERRORISTA","KLEBER/WALLACE","PETRÓPOLIS",77,14,null,"14º","VELOSTER","HENRIQUE","ANTA",110,14,null,"14º"]
["15º",null,null,null,null,null,null,"15º","TRUCO","IGOR LIMA","TRÊS RIOS",75,13,null,"15º","MARRETA","GUSTAVO/GILSON","TRÊS RIOS/S. DUMONT",109,13,null,"15º"]
["16º",null,null,null,null,null,null,"16º","XIA","FAMÍLIA MINGAL","PARAÍBA DO SUL",68,null,null,"16º","POPAYE","GILSON/GUSTAVO","TRÊS RIOS/S. DUMONT",103,null,null,"16º"]
["17º",null,null,null,null,null,null,"17º",null,null,null,null,null,null,"17º","SNIPER","MARCELO","PETRÓPOLIS",100,null,null,"17º"]
["18º",null,null,null,null,null,null,"18º",null,null,null,null,null,null,"18º","WOLVERINE","TETESMILER","TRÊS RIOS",81,null,null,"18º"]
["19º",null,null,null,null,null,null,"19º",null,null,null,null,null,null,"19º","TUMULTO","FÁBIO","ITAIPAVA",78,null,null,"19º"]
["20º",null,null,null,null,null,null,"20º",null,null,null,null,null,null,"20º","ARCANJO","CT LIMA/FAMÍLIA MINGAL","PARAÍBA DO SUL",72,null,null,"20º"]
["21º",null,null,null,null,null,null,"21º",null,null,null,null,null,null,"21º","ATIRADOR","GELSON","TRÊS RIOS",66,null,null,"21º"]
["22º",null,null,null,null,null,null,"22º",null,null,null,null,null,null,"22º","VENENO","JÚLIO FAM. MINGAL/MATHEUS","PARAÍBA DO SUL",65,null,null,"22º"]
["23º",null,null,null,null,null,null,"23º",null,null,null,null,null,null,"23º","?","MÁRCIO","TRÊS RIOS",62,null,null,"23º"]
["24º",null,null,null,null,null,null,"24º",null,null,null,null,null,null,"24º","GAVIÃO","JOSÉ PAULO","PARAÍBA DO SUL",59,null,null,"24º"]
["25º",null,null,null,null,null,null,"25º",null,null,null,null,null,null,"25º",null,null,null,null,null,null,"25º"]

{"sheet":"dez2025","index":5,"n_rows":22,"n_cols":27,"rows_kept":22,"cut":false,"hidden":false,"merged":[[0,0,0,5],[0,7,0,12],[0,14,0,19],[0,21,0,26]]}
["03/12/2025 (QUARTA-FEIRA)",null,null,null,null,null,null,"10/12/2025 (QUARTA-FEIRA)",null,null,null,null,null,null,"17/12/2025 (QUARTA-FEIRA)",null,null,null,null,null,null,"24/12/2025 (QUARTA-FEIRA)"]
["POS.","PÁSSARO","PROPRIETÁRIO","ORIGEM","CANTOS","PONTOS",null,"POS.","PÁSSARO","PROPRIETÁRIO","ORIGEM","CANTOS","PONTOS",null,"POS.","PÁSSARO","PROPRIETÁRIO","ORIGEM","CANTOS","PONTOS",null,"POS.","PÁSSARO","PROPRIETÁRIO","ORIGEM","CANTOS","PONTOS"]
["1º","PROFETA","RAFAEL ANDRADE","PETRÓPOLIS",161,30,null,"1º","SEM LIMITE","JUNINHO","TRÊS RIOS",144,30,null,"1º","ATROPELO","GABRIEL PAVÃO/EDILSON PAVÃO","PETRÓPOLIS",170,30,null,"1º","MARRETA","GILSON/GUSTAVO","SANTOS DUMONT",167,30]
["2º","TROVÃO","LUCIMAR/LUIZ HENRIQUE","TRÊS RIOS",142,28,null,"2º","TROVÃO","LUCIMAR/LUIZ HENRIQUE","TRÊS RIOS",135,28,null,"2º","PASTOR","RAFAEL ANDRADE","PETRÓPOLIS",131,28,null,"2º","BARÃO","RAFAEL DIAS","PARAÍBA DO SUL",162,28]
["3º","AVASSALADOR","WELLINTON","TRÊS RIOS",130,26,null,"3º","GUARDIÃO","CICINHO/ÍCARO","PARAÍBA DO SUL",134,26,null,"3º","CORINGA","SÍLVIO LEAL","PETRÓPOLIS",128,26,null,"3º","TROVÃO","LUCIMAR/LUÍS HENRIQUE","TRÊS RIOS",149,26]
["4º","ANDROID","OTÁVIO","LEVY GASPARIAN",121,24,null,"4º","TOP","FAMÍLIA MINGAL/MATHEUS","PARAÍBA DO SUL",132,24,null,"4º","MANDRAKE","CLÁUDIO","MIGUEL PEREIRA",121,24,null,"4º","POPEY","GILSON/GUSTAVO","SANTOS DUMONT",118,24]
["5º","MANDRAKE","CLÁUDIO","MIGUEL PEREIRA",120,23,null,"5º","BRUTO DE RAÇA","XEIA","PATY DO ALFERES",121,23,null,"5º","MARRETA","GILSON/GUSTAVO","TRÊS RIOS/S. DUMONT",115,23,null,"5º","CONFUSÃO","CICINHO","PARAÍBA DO SUL",117,23]
["6º","MARRETA","GILSON/GUSTAVO","TRÊS RIOS/S. DUMONT",105,22,null,"6º","MARECHAL","CIZINHO","PATY DO ALFERES",119,22,null,"6º","MÁSKARA","VINÍCIUS","AREAL",101,22,null,"6º","VENENO","CT LIMA/MATHEUS","PARAÍBA DO SUL",116,22]
["7º","VENENO","JOANES","PARAÍBA DO SUL",105,21,null,"7º","VENENO","JOANES","PARAÍBA DO SUL",119,21,null,"7º","ALTA TENSÃO","PABLO","ITAIPAVA",91,21,null,"7º","IMPERADOR","WALLACE","PETRÓPOLIS",100,21]
["8º","VELOSTER","HENRIQUE","ANTA",102,20,null,"8º","PASTOR","RAFAEL ANDRADE","PETRÓPOLIS",115,20,null,"8º","RADAR","CLODOALDO","TRÊS RIOS",91,20,null,"8º","DUBAY","ALEX MOTTA","PETRÓPOLIS",90,20]
["9º","TOP","FAMÍLIA MINGAL","PARAÍBA DO SUL",101,19,null,"9º","VELOSTER","HENRIQUE","ANTA",115,19,null,"9º",null,null,null,null,null,null,"9º","SNIPER","GABRIEL/RICARDINHO","PARAÍBA DO SUL",60,19]
["10º","POPAYE","GILSON/GUSTAVO","TRÊS RIOS/S. DUMONT",97,18,null,"10º","MANDRAKE","CLÁUDIO","MIGUEL PEREIRA",114,18,null,"10º",null,null,null,null,null,null,"10º"]
["11º","TERROR DA BAIXADA","CICINHO/BALINHA","PARAÍBA DO SUL",81,17,null,"11º","ANDROID","OTÁVIO","LEVY GASPARIAN",110,17,null,"11º",null,null,null,null,null,null,"11º"]
["12º","MALUQUINHO","LUIZ FERNANDO","TRÊS RIOS",79,16,null,"12º","MÁSKARA","VINÍCIUS","AREAL",106,16,null,"12º",null,null,null,null,null,null,"12º"]
["13º",null,null,null,null,null,null,"13º","SHAKAL","JUNINHO","TRÊS RIOS",102,15,null,"13º",null,null,null,null,null,null,"13º"]
["14º",null,null,null,null,null,null,"14º","TNT","ANTÔNIO MENEGUIT","CACHOEIRA DE MACACU",98,14,null,"14º",null,null,null,null,null,null,"14º"]
["15º",null,null,null,null,null,null,"15º","MATA RINDO","VINÍCIUS BOZO","TRÊS RIOS",66,13,null,"15º",null,null,null,null,null,null,"15º"]
["16º",null,null,null,null,null,null,"16º","SEGREDO","CLÁUDIO","MIGUEL PEREIRA",43,null,null,"16º",null,null,null,null,null,null,"16º"]
["17º",null,null,null,null,null,null,"17º",null,null,null,null,null,null,"17º",null,null,null,null,null,null,"17º"]
["18º",null,null,null,null,null,null,"18º",null,null,null,null,null,null,"18º",null,null,null,null,null,null,"18º"]
["19º",null,null,null,null,null,null,"19º",null,null,null,null,null,null,"19º",null,null,null,null,null,null,"19º"]
["20º",null,null,null,null,null,null,"20º",null,null,null,null,null,null,"20º",null,null,null,null,null,null,"20º"]